bitfinex/quotes_ETHUSD_20220219
["timestamp","ask_amount","ask_price","bid_price","bid_amount"]
[1645291212148,0.00316056,2755.0,2754.9,0.01608477]
[1645291212447,0.00316056,2755.0,2754.9,1.55824936]
[1645291213050,0.91123362,2755.1,2754.9,1.55824936]
[1645291213247,0.91123362,2755.1,2754.9,0.01608477]
[1645291213649,0.91123362,2755.1,2755.0,1.54205389]
[1645291213650,0.00306362,2755.1,2755.0,1.54205389]
[1645291213851,0.90807,2755.4,2755.0,1.54205389]
[1645291214050,0.0030636,2755.1,2755.0,1.54205389]
[1645291214258,0.54809314,2755.6,2755.2,0.0061272]
[1645291214449,0.54809314,2755.6,2755.5,0.53912779]
[1645291215252,0.54809314,2755.6,2755.5,2.08096703]
[1645291215452,0.54809314,2755.6,2755.5,0.53912779]
[1645291217496,0.54809314,2755.6,2755.5,2.08095587]
[1645291217696,0.54809314,2755.6,2755.5,0.53912779]
[1645291218297,0.00306976,2755.7,2755.5,0.53912779]
[1645291218601,3.43491456,2756.5,2755.5,0.53912779]
[1645291218798,3.43491456,2756.5,2755.6,1.54167617]
[1645291218999,0.00306976,2755.7,2755.6,1.54167617]
[1645291219666,0.00306976,2755.7,2755.2,1.2110272]
[1645291219865,0.525,2755.8,2755.3,1.54190807]
[1645291220267,3.5,2755.7,2755.2,0.0061272]
[1645291220470,2.43301,2755.6,2755.2,0.0061272]
[1645291220668,3.5,2755.5,2755.2,0.0061272]
[1645291220864,0.55804682,2755.3,2755.2,0.0061272]
[1645291221064,1.08304682,2755.3,2755.2,0.0061272]
[1645291221664,5.49129682,2755.3,2755.2,0.0061272]
[1645291221866,6.49129682,2755.3,2755.2,0.0061272]
[1645291222668,6.49129682,2755.3,2753.8,1.99775096]
[1645291222669,3.40833,2755.2,2753.8,1.99775096]
[1645291222871,0.90845,2754.8,2754.1,0.00307075]
[1645291223098,2.72535,2755.0,2754.1,0.00307075]
[1645291223099,4.025,2754.7,2754.1,0.00307075]
[1645291223297,0.525,2754.6,2754.1,0.00307075]
[1645291223498,0.525,2754.5,2754.1,0.00307075]
[1645291223700,0.525,2754.5,2753.9,1.54239547]
[1645291224100,0.51344601,2754.4,2754.1,0.00307016]
[1645291224300,0.525,2754.3,2754.1,0.00307016]
[1645291225002,0.525,2754.3,2753.9,1.54239547]
[1645291225202,0.825,2754.3,2754.1,0.00307013]
[1645291225405,0.825,2754.3,2754.1,1.5454656]
[1645291225605,0.825,2754.3,2754.1,0.00307013]
[1645291226205,0.825,2754.3,2753.7,1.54239547]
[1645291226206,1.58868443,2754.2,2753.7,1.54239547]
[1645291226404,2.58868443,2754.2,2754.1,0.00307013]
[1645291226606,3.11368443,2754.2,2754.1,0.00307013]
[1645291227048,4.02227663,2754.2,2754.1,0.00307013]
[1645291227253,4.02227663,2754.2,2753.7,1.54239547]
[1645291227450,3.3421722,2754.2,2753.7,1.54239547]
[1645291227651,3.3421722,2754.2,2754.0,0.00307017]
[1645291228449,3.3421722,2754.2,2753.7,1.54239547]
[1645291228649,3.89023638,2754.2,2753.7,1.54239547]
[1645291228850,3.89023638,2754.2,2754.0,0.00307019]
[1645291229250,2.72582,2754.1,2754.0,0.00307019]
[1645291229451,3.25082,2754.1,2754.0,0.00307019]
[1645291229649,7.75082,2754.1,2754.0,0.00307019]
[1645291229859,8.35082,2754.1,2753.7,1.54239547]
[1645291230053,1.90868,2754.0,2753.9,0.00307022]
[1645291230251,2.43368,2754.0,2753.9,0.00307022]
[1645291230901,2.43368,2754.0,2753.6,1.54239547]
[1645291231107,7.75111,2754.0,2753.7,1.54239547]
[1645291231299,0.90869,2753.8,2752.9,2.63852811]
[1645291231502,0.66267653,2753.6,2753.1,1.54272626]
[1645291231701,0.90869,2753.5,2753.2,1.54272626]
[1645291231901,1.43369,2753.5,2753.2,1.54272626]
[1645291232103,4.40874,2753.4,2753.2,1.54272626]
[1645291232302,4.40874,2753.4,2752.8,0.00320447]
[1645291232303,4.025,2753.3,2752.8,0.00320447]
[1645291232515,4.025,2753.3,2752.5,0.00320447]
[1645291232516,0.90895,2753.2,2752.5,0.00320447]
[1645291232706,0.54108297,2752.9,2752.5,0.00320447]
[1645291232910,0.54108297,2752.9,2752.3,1.54612281]
[1645291232911,0.525,2752.8,2752.3,1.54612281]
[1645291233105,3.975,2752.8,2752.4,1.54291834]
[1645291233302,1.0,2752.7,2752.3,0.00320447]
[1645291233503,0.525,2752.6,2752.1,0.00320447]
[1645291233702,0.90916,2752.5,2752.1,0.00320447]
[1645291233905,2.81829,2752.5,2751.9,0.69025543]
[1645291234104,2.81829,2752.5,2751.9,0.00320447]
[1645291234105,1.81829,2752.5,2751.9,0.00320447]
[1645291234340,1.89489471,2752.4,2751.8,1.20704961]
[1645291234544,2.19489471,2752.4,2751.9,0.00320447]
[1645291234744,1.89489471,2752.4,2752.1,0.00327273]
[1645291234943,4.40918,2752.3,2752.1,0.00327273]
[1645291235148,1.43418,2752.3,2752.1,0.00327273]
[1645291235743,0.90916,2752.2,2751.6,0.00320447]
[1645291235947,1.81846,2752.0,2751.6,0.00320447]
[1645291236143,0.68122861,2751.8,2751.6,0.01309287]
[1645291236344,1.20622861,2751.8,2751.6,0.01309287]
[1645291236744,0.90925,2751.7,2751.6,0.01309287]
[1645291236942,0.90925,2751.7,2751.2,0.00320447]
[1645291237146,0.90925,2751.7,2751.6,0.00327299]
[1645291238197,0.90925,2751.7,2751.2,0.00320447]
[1645291238393,0.90925,2751.7,2751.5,0.00327302]
[1645291239195,0.90925,2751.7,2751.2,0.00320447]
[1645291239404,0.525,2751.6,2751.2,0.00320447]
[1645291239600,2.3442,2751.6,2751.5,0.00327305]
[1645291239797,3.3442,2751.6,2751.5,0.00327305]
[1645291240000,0.9095876,2751.5,2751.0,0.01309415]
[1645291240198,0.825,2751.4,2751.0,0.01309415]
[1645291240401,1.8191613,2751.3,2750.4,0.00320447]
[1645291240599,0.58997628,2750.9,2750.4,0.00320447]
[1645291240799,0.525,2750.8,2750.4,0.00320447]
[1645291241198,0.525,2750.8,2750.2,0.52034593]
[1645291242256,1.43462,2750.8,2750.2,0.52034593]
[1645291242664,2.34421,2750.8,2750.2,0.52034593]
[1645291242862,2.34421,2750.8,2750.2,0.00320447]
[1645291243066,2.34421,2750.8,2750.4,0.00147159]
[1645291243560,1.81941,2750.7,2750.4,0.00147159]
[1645291243762,1.73477,2750.6,2750.4,0.00147159]
[1645291244159,1.825,2750.6,2749.9,0.20589433]
[1645291244460,1.825,2750.6,2750.4,0.0032762]
[1645291244461,2.125,2750.6,2750.4,0.0032762]
[1645291244659,2.125,2750.6,2749.9,0.01310676]
[1645291244660,1.8195963,2750.5,2749.9,0.01310676]
[1645291244861,2.72972,2750.3,2749.9,0.01310676]
[1645291245063,0.58977549,2750.1,2749.9,0.01310676]
[1645291245260,3.34487,2750.2,2750.1,1.3854453]
[1645291245462,1.525,2750.2,2750.1,1.3854453]
[1645291245703,1.425,2750.2,2750.1,1.3854453]
[1645291246099,0.525,2750.5,2750.1,4.8854453]
[1645291246301,1.81925,2750.7,2750.4,0.71911209]
[1645291247496,0.90956,2750.6,2750.4,0.71911209]
[1645291248899,1.8192684,2750.6,2750.4,0.71911209]
[1645291250542,1.8192684,2750.6,2750.4,0.20589433]
[1645291250747,3.3442684,2750.6,2750.4,0.20589433]
[1645291250949,3.6442684,2750.6,2750.4,0.20589433]
[1645291251143,3.3442684,2750.6,2750.4,0.20589433]
[1645291251745,2.43456,2750.6,2750.4,0.20589433]
[1645291252147,2.76578205,2750.6,2750.4,0.20589433]
[1645291253212,3.67548535,2750.6,2750.4,0.20589433]
[1645291254302,2.32817767,2750.6,2750.4,0.20589433]
[1645291254601,2.62817767,2750.6,2750.4,0.20589433]
[1645291255302,3.53788097,2750.6,2750.4,0.20589433]
[1645291257244,3.23788097,2750.6,2750.4,0.20589433]
[1645291257445,3.53788097,2750.6,2750.4,0.20589433]
[1645291258144,2.93788097,2750.6,2750.4,0.20589433]
[1645291259145,3.0,2750.4,2750.3,0.38502121]
[1645291259350,3.0,2750.4,2749.9,0.0131177]
[1645291259351,5.23022,2750.2,2749.9,0.0131177]
[1645291259549,0.525,2750.1,2749.9,0.0131177]
[1645291259749,0.3,2750.0,2749.1,3.6817]
[1645291259945,0.525,2749.9,2749.2,1.54465645]
[1645291260147,0.70331106,2749.8,2749.2,1.58671979]
[1645291260348,0.525,2749.7,2749.3,1.54465645]
[1645291260601,0.91016,2749.6,2749.3,1.54465645]
[1645291260799,2.34526,2749.5,2749.4,0.04092649]
[1645291261011,2.34526,2749.5,2749.4,1.58558294]
[1645291261197,3.73042,2749.6,2749.5,0.95047749]
[1645291261402,3.73042,2749.6,2749.5,2.49513394]
[1645291261600,3.73042,2749.6,2749.5,2.53549201]
[1645291261999,2.82026,2749.6,2749.5,2.53549201]
[1645291262202,2.34526,2749.6,2749.5,2.53549201]
[1645291262401,0.525,2749.6,2749.5,2.53549201]
[1645291262601,0.525,2749.6,2749.5,3.18150891]
[1645291262800,0.91012,2749.7,2749.5,3.18150891]
[1645291263000,0.91012,2749.7,2749.6,1.54465645]
[1645291263912,0.91012,2749.7,2749.6,2.23170741]
[1645291264560,0.91012,2749.7,2749.6,1.54465645]
[1645291264760,1.81983,2749.9,2749.6,1.54465645]
[1645291264967,0.00305466,2750.1,2749.7,3.54842114]
[1645291265265,0.00305466,2750.1,2749.9,0.91619411]
[1645291265459,0.00305466,2750.1,2750.0,1.54465645]
[1645291265661,0.00305466,2750.1,2750.0,2.46085056]
[1645291265863,0.00656581,2750.6,2750.1,0.6192692]
[1645291266060,0.00656581,2750.6,2750.3,0.67985485]
[1645291266259,0.00656581,2750.6,2750.3,2.2245113]
[1645291266472,0.9094,2751.3,2750.4,3.5]
[1645291266664,4.332,2751.9,2750.8,0.68017674]
[1645291266861,3.088,2751.9,2750.9,0.68017674]
[1645291267162,3.088,2751.9,2750.6,4.76337314]
[1645291267163,2.9259,2752.1,2751.1,0.68017674]
[1645291267366,1.1623,2752.7,2751.3,0.68017674]
[1645291267565,0.90901,2752.5,2751.5,0.68017674]
[1645291267762,0.90901,2752.5,2751.5,1.74837674]
[1645291267961,0.90901,2752.5,2751.6,1.54465645]
[1645291268500,5.31799,2752.7,2751.7,0.64506555]
[1645291268501,0.00305396,2752.1,2751.7,0.64506555]
[1645291268699,0.00305396,2752.1,2751.8,1.54465645]
[1645291269298,1.9092238,2752.3,2751.8,1.54465645]
[1645291269698,0.00306889,2752.1,2751.8,1.54465645]
[1645291270404,0.00306889,2752.1,2750.8,0.68017674]
[1645291270405,1.43415,2752.0,2750.8,0.68017674]
[1645291270603,1.56305616,2752.0,2750.7,0.01595661]
[1645291270800,0.3,2751.8,2750.7,0.01595661]
[1645291271001,0.525,2751.7,2750.8,0.68017674]
[1645291271200,0.525,2751.7,2751.1,0.69325308]
[1645291271403,3.5535864,2751.7,2751.1,0.69325308]
[1645291271606,0.90955,2751.5,2751.1,0.69325308]
[1645291271846,2.34409,2751.5,2751.1,0.69325308]
[1645291272046,2.34715914,2751.5,2751.1,0.69325308]
[1645291272245,2.34715914,2751.5,2750.7,0.69613335]
[1645291272449,1.43760914,2751.5,2750.7,0.69613335]
[1645291272947,1.43454,2751.5,2750.7,0.69613335]
[1645291273147,0.00306822,2751.2,2750.9,0.69246414]
[1645291274151,0.90945,2751.3,2750.9,0.69246414]
[1645291274348,0.00306824,2751.2,2750.9,0.69246414]
[1645291274950,0.00306824,2751.2,2750.8,0.68017674]
[1645291275450,1.08123244,2751.4,2750.9,0.68017674]
[1645291275695,1.08123244,2751.4,2750.7,0.68017674]
[1645291275696,0.00306826,2751.1,2750.7,0.68017674]
[1645291276298,0.00306826,2751.1,2750.5,0.68017674]
[1645291276496,0.525,2751.2,2750.4,0.68017674]
[1645291276702,1.20946,2751.1,2750.6,0.68017674]
[1645291276899,8.57339,2751.2,2750.5,0.68017674]
[1645291276900,4.02806841,2751.0,2750.5,0.68017674]
[1645291277097,0.525,2750.9,2750.4,1.29628072]
[1645291277297,1.81942,2750.8,2750.4,1.29628072]
[1645291277504,1.81942,2750.8,2750.2,0.68017674]
[1645291277505,0.525,2750.7,2750.2,0.68017674]
[1645291277704,0.525,2750.7,2750.0,0.90647314]
[1645291277705,0.9099795,2750.6,2750.0,0.68017674]
[1645291277902,0.525,2750.5,2750.0,0.68017674]
[1645291278298,0.525,2750.5,2750.1,0.68017674]
[1645291278498,0.525,2750.5,2750.2,1.21929993]
[1645291278699,0.825,2750.5,2750.2,1.21929993]
[1645291278998,0.825,2750.5,2750.2,0.53912319]
[1645291279207,0.82806866,2750.5,2750.2,0.53912319]
[1645291279646,0.82806866,2750.5,2750.2,1.03912319]
[1645291279647,0.91007,2750.4,2750.2,1.03912319]
[1645291279847,1.43507,2750.4,2750.2,0.53912319]
[1645291280250,1.43507,2750.4,2750.2,1.21929993]
[1645291280452,0.003071,2750.4,2750.2,1.21929993]
[1645291280653,0.003071,2750.4,2750.3,0.68017674]
[1645291281450,0.9096,2750.6,2750.2,0.53912319]
[1645291281649,0.9096,2750.6,2750.2,1.21929993]
[1645291281650,0.00307098,2750.5,2750.2,1.21929993]
[1645291282052,0.00307098,2750.5,2750.2,0.53912319]
[1645291282350,0.00307098,2750.5,2750.3,0.0167976]
[1645291282550,0.9098677,2750.5,2750.3,0.0167976]
[1645291282751,1.44647712,2750.6,2750.3,0.0167976]
[1645291282952,0.52807098,2750.5,2750.3,0.0167976]
[1645291283700,0.525,2750.5,2750.3,0.0167976]
[1645291284100,0.5280685,2750.5,2750.3,0.0167976]
[1645291284704,0.5280685,2750.5,2750.3,0.69697434]
[1645291284900,0.525,2750.5,2750.3,0.69697434]
[1645291285100,0.525,2750.5,2750.3,0.0167976]
[1645291285300,0.5280685,2750.5,2750.3,0.0167976]
[1645291286102,0.54952006,2750.7,2750.3,0.0167976]
[1645291286304,2.76931556,2751.0,2750.3,0.0167976]
[1645291286305,0.95004556,2751.0,2750.5,0.68017674]
[1645291286503,0.54954921,2751.4,2750.5,0.68017674]
[1645291286703,0.54954921,2751.4,2750.4,0.68017674]
[1645291287167,0.525,2751.5,2751.1,0.70938548]
[1645291287364,0.90939,2751.5,2751.1,0.70938548]
[1645291288164,2.37443006,2751.7,2750.6,0.68017674]
[1645291288366,2.37443006,2751.7,2750.5,0.94747674]
[1645291288564,3.97443006,2751.7,2750.4,0.03686599]
[1645291288764,0.00306832,2751.3,2750.4,0.03686599]
[1645291289463,0.00306832,2751.3,2751.0,0.6612563]
[1645291289864,0.90938,2751.5,2751.0,0.6612563]
[1645291290064,0.00306832,2751.3,2751.0,0.6612563]
[1645291290267,0.00306832,2751.3,2751.1,1.54416306]
[1645291290467,0.00306832,2751.3,2750.4,0.03686599]
[1645291290702,0.00306832,2751.3,2750.5,1.54426634]
[1645291291103,0.3,2751.6,2750.5,1.54426634]
[1645291291303,0.00306842,2751.0,2750.5,1.54426634]
[1645291291506,0.00306842,2751.0,2750.6,0.63770456]
[1645291291703,0.00306842,2751.0,2750.7,1.54426634]
[1645291292207,0.90939,2751.5,2750.7,1.54426634]
[1645291292405,0.00306842,2751.0,2750.7,1.54426634]
[1645291293504,0.90939,2751.5,2750.7,1.54426634]
[1645291293706,0.00306842,2751.0,2750.7,1.54426634]
[1645291294351,0.90939,2751.5,2751.1,0.67684319]
[1645291294863,0.90939,2751.5,2751.0,0.00613683]
[1645291295057,0.90939,2751.5,2751.1,1.54419843]
[1645291296756,2.86186,2751.7,2751.1,1.54419843]
[1645291296957,2.81882,2751.7,2751.1,1.54419843]
[1645291297556,3.11882,2751.7,2751.1,1.54419843]
[1645291297755,3.11882,2751.7,2751.0,0.5822927]
[1645291297756,3.41882,2751.7,2751.0,0.5822927]
[1645291298215,3.41882,2751.7,2751.1,1.54416883]
[1645291298411,0.00327584,2751.5,2751.1,1.54416883]
[1645291298611,0.91267584,2751.5,2751.1,1.54416883]
[1645291298812,0.90783426,2751.5,2751.1,1.54416883]
[1645291299811,1.90783426,2751.5,2751.1,1.54416883]
[1645291300213,0.90783426,2751.5,2751.1,1.54416883]
[1645291303255,0.90783426,2751.5,2751.1,2.17355132]
[1645291303453,0.90783426,2751.5,2751.2,1.54416883]
[1645291303853,0.90783426,2751.5,2751.1,1.54416883]
[1645291304053,0.90783426,2751.5,2751.0,0.00613683]
[1645291304253,0.90783426,2751.5,2751.1,1.54416855]
[1645291306207,0.90783426,2751.5,2751.0,0.00613683]
[1645291306407,0.90783426,2751.5,2751.1,1.54420304]
[1645291306612,0.90783426,2751.5,2751.0,0.00613683]
[1645291307210,0.90783426,2751.5,2751.1,1.54421455]
[1645291308814,0.90783426,2751.5,2751.4,0.60761106]
[1645291310068,0.00327563,2751.6,2751.4,0.60761106]
[1645291310271,0.9497957,2751.8,2751.4,0.60761106]
[1645291310476,0.00327573,2751.6,2751.5,1.54399794]
[1645291311071,0.00327573,2751.6,2751.4,0.60761106]
[1645291311072,0.00327573,2751.6,2751.4,2.78178574]
[1645291311271,7.573e-05,2751.6,2751.5,1.54399794]
[1645291311469,4.025,2753.0,2751.5,3.22197468]
[1645291311673,3.5,2753.0,2751.6,2.76196304]
[1645291311873,0.525,2753.4,2751.8,0.68017674]
[1645291311874,3.5,2753.3,2751.8,0.68017674]
[1645291312070,3.5,2753.3,2751.7,1.54399794]
[1645291312071,3.5,2753.1,2751.9,1.54399794]
[1645291312270,0.90888,2753.1,2752.0,1.54399794]
[1645291312498,0.53672048,2753.4,2752.1,1.54399794]
[1645291312499,3.5,2753.0,2752.1,1.54399794]
[1645291312670,1.0,2752.7,2752.1,0.54804649]
[1645291312869,1.0,2752.7,2751.7,1.1349]
[1645291313116,1.0,2752.7,2751.8,1.54377193]
[1645291313513,0.90906,2752.6,2751.8,1.54377193]
[1645291314213,0.99517616,2752.6,2751.8,1.54377193]
[1645291314411,0.99517616,2752.6,2751.9,0.51470038]
[1645291314614,0.90906,2752.6,2752.0,1.54377193]
[1645291315013,0.90906,2752.6,2751.9,0.51470038]
[1645291315211,0.99517616,2752.6,2751.9,0.51470038]
[1645291315413,0.00327534,2752.4,2751.9,0.51470038]
[1645291315917,0.00327534,2752.4,2752.0,1.54374]
[1645291316314,3.29249013,2752.9,2752.0,1.54374]
[1645291316515,0.00327539,2752.3,2752.0,1.54374]
[1645291317558,0.9292224,2752.6,2752.0,1.54374]
[1645291317759,0.9292224,2752.6,2752.5,0.70527618]
[1645291320460,0.0202024,2752.6,2752.5,0.70527618]
[1645291321709,0.00327521,2752.7,2752.5,0.70527618]
[1645291321710,0.00327521,2752.7,2752.6,0.04040479]
[1645291322307,0.04313,2753.4,2752.6,0.04040479]
[1645291322507,0.525,2753.3,2752.6,0.04040479]
[1645291322707,0.00327516,2752.8,2752.6,0.04040479]
[1645291323009,0.90898,2752.7,2752.6,0.04040479]
[1645291324010,1.00316462,2752.8,2752.6,0.04040479]
[1645291324208,0.00316462,2752.8,2752.6,0.04040479]
[1645291324664,1.0,2752.8,2752.6,0.04040479]
[1645291324860,2.81802,2752.9,2752.6,0.04040479]
[1645291325062,0.9120846,2752.8,2752.6,0.04040479]
[1645291325261,1.9120846,2752.8,2752.6,0.04040479]
[1645291325460,0.9120846,2752.8,2752.6,0.04040479]
[1645291325659,1.9120846,2752.8,2752.6,0.04040479]
[1645291325865,1.90892,2752.8,2752.6,0.04040479]
[1645291326062,1.9120846,2752.8,2752.6,0.04040479]
[1645291327065,0.90892,2752.8,2752.6,0.04040479]
[1645291327263,0.91197801,2752.8,2752.6,0.04040479]
[1645291328304,0.90892,2752.8,2752.6,0.04040479]
[1645291328515,0.91197801,2752.8,2752.6,0.04040479]
[1645291329406,0.90892,2752.8,2752.6,0.04040479]
[1645291329804,0.91197801,2752.8,2752.6,0.04040479]
[1645291330703,0.90892,2752.8,2752.6,0.04040479]
[1645291330907,0.86198785,2752.8,2752.6,0.04040479]
[1645291331856,0.85892,2752.8,2752.6,0.04040479]
[1645291332259,0.86198785,2752.8,2752.6,0.04040479]
[1645291333060,0.85892,2752.8,2752.6,0.04040479]
[1645291333258,1.85892,2752.8,2752.6,0.04040479]
[1645291333456,1.86198785,2752.8,2752.6,0.04040479]
[1645291333857,0.86198785,2752.8,2752.6,0.04040479]
[1645291334160,0.00306785,2752.8,2752.6,3.54040479]
[1645291334360,2.4743187,2753.3,2752.6,3.54040479]
[1645291334361,0.9493187,2753.3,2752.6,3.54040479]
[1645291334563,0.00306728,2752.8,2752.6,0.04040479]
[1645291335606,1.8580787,2753.3,2753.1,0.50866458]
[1645291337009,1.86114575,2753.3,2753.1,0.50866458]
[1645291337813,1.8580787,2753.3,2753.1,0.50866458]
[1645291338209,1.86114579,2753.3,2753.1,0.50866458]
[1645291339013,1.8580787,2753.3,2752.6,0.04040479]
[1645291339454,1.86114579,2753.3,2752.6,0.04040479]
[1645291339951,0.91182709,2753.3,2752.6,0.04040479]
[1645291340150,0.91182709,2753.3,2753.0,0.64957024]
[1645291340352,0.90876,2753.3,2753.0,0.64957024]
[1645291340555,0.0030672,2753.1,2753.0,0.64957024]
[1645291341659,9.48893,2754.1,2753.0,0.64957024]
[1645291341660,1.32559322,2754.4,2753.0,0.64957024]
[1645291341856,1.28282322,2754.4,2753.2,0.0092016]
[1645291342057,1.28282322,2754.4,2754.0,0.59193108]
[1645291342657,0.90849,2754.2,2754.0,0.59193108]
[1645291343109,0.00181953,2754.3,2754.0,0.59193108]
[1645291343308,0.00181953,2754.3,2754.0,1.60433108]
[1645291343913,0.90838,2754.4,2754.0,1.60433108]
[1645291344109,0.00181953,2754.3,2754.0,1.60433108]
[1645291345108,0.90838,2754.4,2754.0,1.60433108]
[1645291345310,0.00327668,2754.3,2754.0,1.60433108]
[1645291345809,0.00327668,2754.3,2754.0,1.0124]
[1645291346010,0.00327668,2754.3,2753.3,0.27824412]
[1645291346011,0.30327668,2754.3,2753.3,0.27824412]
[1645291346213,1.43362,2754.2,2753.3,0.09684412]
[1645291346413,0.90863,2754.0,2753.3,0.09684412]
[1645291346861,0.90863,2754.0,2753.9,0.62008012]
[1645291347464,0.90844,2754.3,2753.9,0.62008012]
[1645291347861,0.00327678,2754.1,2753.9,0.62008012]
[1645291348661,0.90844,2754.3,2753.9,0.62008012]
[1645291349068,1.525,2754.4,2753.9,0.62008012]
[1645291349069,0.91176676,2754.1,2753.9,0.62008012]
[1645291349262,0.91176676,2754.1,2753.3,0.09684412]
[1645291349864,0.90849,2754.1,2753.3,0.09684412]
[1645291350266,0.00327692,2753.8,2753.3,0.09684412]
[1645291350465,0.00327692,2753.8,2753.4,0.62910088]
[1645291351307,0.00327697,2753.7,2753.4,0.62910088]
[1645291351905,0.00327697,2753.7,2753.5,1.54281699]
[1645291352105,0.00327697,2753.7,2753.4,0.62910088]
[1645291352306,2.43341,2754.4,2753.5,1.54281747]
[1645291352506,0.00327697,2753.7,2753.4,0.62910088]
[1645291352706,0.00327697,2753.7,2753.4,0.58080341]
[1645291353507,0.90847,2754.2,2753.4,0.58080341]
[1645291353708,2.47386013,2754.4,2753.5,1.5428251]
[1645291353909,0.003277,2753.7,2753.5,1.5428251]
[1645291354755,0.90846,2754.2,2754.1,0.67664768]
[1645291355355,0.90846,2754.2,2753.2,0.0092016]
[1645291355356,4.40846,2754.2,2753.2,0.0092016]
[1645291355558,0.90873,2753.9,2753.2,0.0092016]
[1645291355760,0.525,2753.8,2753.2,0.0092016]
[1645291356356,0.003277,2753.7,2753.2,0.0092016]
[1645291356560,0.525,2753.6,2753.2,0.0092016]
[1645291357061,1.43389,2753.6,2753.2,0.0092016]
[1645291357260,2.43389,2753.6,2753.2,0.0092016]
[1645291357459,0.00327708,2753.5,2753.2,0.0092016]
[1645291357659,0.525,2753.4,2753.2,0.0092016]
[1645291358716,0.52827713,2753.4,2753.2,0.0092016]
[1645291359119,3.5,2753.3,2753.2,0.0092016]
[1645291359320,4.5,2753.3,2753.2,0.0092016]
[1645291359517,1.0,2753.3,2753.2,0.0092016]
[1645291359917,2.43389,2753.4,2753.2,0.0092016]
[1645291360119,2.43716716,2753.4,2753.2,0.0092016]
[1645291360620,5.93716716,2753.4,2753.2,0.00785141]
[1645291360819,2.43389,2753.4,2753.2,0.00785141]
[1645291361018,2.43716713,2753.4,2753.2,0.00785141]
[1645291362053,2.43389,2753.4,2753.2,0.00785141]
[1645291362256,2.43716713,2753.4,2753.2,0.00785141]
[1645291363152,2.43389,2753.4,2753.2,0.00785141]
[1645291363352,2.43716713,2753.4,2753.2,0.00785141]
[1645291364353,2.43389,2753.4,2753.2,0.00785141]
[1645291364554,2.43694523,2753.4,2753.2,0.00785141]
[1645291365604,2.43389,2753.4,2753.2,0.00785141]
[1645291365804,2.43694523,2753.4,2753.2,0.00785141]
[1645291366206,5.93694523,2753.4,2753.2,0.00785141]
[1645291366807,2.43389,2753.4,2753.2,0.00785141]
[1645291367009,2.43694523,2753.4,2753.2,0.00785141]
[1645291367312,5.93694523,2753.4,2753.2,0.00785141]
[1645291367507,2.43694523,2753.4,2753.2,0.00785141]
[1645291367706,5.93694523,2753.4,2753.2,0.00785141]
[1645291367907,2.43389,2753.4,2753.2,0.00785141]
[1645291368309,2.43694523,2753.4,2753.2,0.00785141]
[1645291369109,2.43389,2753.4,2753.2,0.00785141]
[1645291369362,2.43696021,2753.4,2753.2,0.00785141]
[1645291370264,2.43389,2753.4,2753.2,0.00785141]
[1645291370663,2.43696021,2753.4,2753.2,0.00785141]
[1645291371666,1.525,2753.4,2753.2,0.00785141]
[1645291371868,0.52807021,2753.4,2753.2,0.00785141]
[1645291372767,0.525,2753.4,2753.2,0.00785141]
[1645291372966,0.5280692,2753.4,2753.2,0.00785141]
[1645291374004,0.525,2753.4,2753.2,0.00785141]
[1645291374204,0.5280692,2753.4,2753.2,0.00785141]
[1645291375207,0.525,2753.4,2753.2,0.00785141]
[1645291375411,0.5280692,2753.4,2753.2,0.00785141]
[1645291375611,6.1328368,2753.8,2753.4,1.5811384]
[1645291375612,0.90858,2753.8,2753.4,1.5811384]
[1645291375809,0.00141844,2754.1,2753.5,1.54304934]
[1645291376858,0.00141844,2754.1,2753.6,0.56242238]
[1645291377860,0.00181721,2754.0,2753.6,0.56242238]
[1645291378659,0.00141844,2754.1,2753.6,0.56242238]
[1645291379062,0.00181721,2753.9,2753.6,0.56242238]
[1645291380060,0.00141844,2754.1,2753.6,0.56242238]
[1645291380274,0.00327689,2753.9,2753.6,0.56242238]
[1645291381112,0.90853,2754.0,2753.6,0.56242238]
[1645291381512,0.00327689,2753.9,2753.6,0.56242238]
[1645291382415,0.90853,2754.0,2753.6,0.56242238]
[1645291382618,0.00327689,2753.9,2753.6,0.56242238]
[1645291383617,0.00141844,2754.1,2753.7,1.54283648]
[1645291383817,0.00327689,2753.9,2753.7,1.54283648]
[1645291384671,0.00141844,2754.1,2753.7,1.54283648]
[1645291385071,0.00327686,2753.9,2753.7,1.54283648]
[1645291385478,0.00327686,2753.9,2753.4,1.5811384]
[1645291385676,0.99793302,2753.9,2753.4,1.5811384]
[1645291385873,0.95152,2753.8,2753.4,1.5811384]
[1645291386076,0.525,2753.7,2753.4,1.5811384]
[1645291386272,0.825,2753.7,2753.4,1.5811384]
[1645291386475,0.91111616,2753.7,2753.4,1.5811384]
[1645291386683,2.21111616,2753.7,2753.4,1.5811384]
[1645291387075,0.95168,2753.6,2753.4,1.5811384]
[1645291387275,0.95168,2753.6,2753.2,0.00785141]
[1645291387276,47.2367216,2753.4,2753.2,0.00785141]
[1645291387478,0.525,2753.3,2753.2,0.00785141]
[1645291387676,1.825,2753.3,2753.2,0.00785141]
[1645291388110,2.46888233,2753.3,2753.2,0.00785141]
[1645291388707,3.37781233,2753.3,2753.2,0.00785141]
[1645291389407,2.73393,2753.3,2753.2,0.00785141]
[1645291391009,2.53393,2753.3,2753.2,0.00785141]
[1645291393860,6.03393,2753.3,2753.2,0.00785141]
[1645291394062,6.03393,2753.3,2752.6,0.04040479]
[1645291394063,8.0,2753.2,2752.6,0.04040479]
[1645291394362,0.90921,2753.0,2752.6,0.04040479]
[1645291394558,0.525,2752.9,2752.6,0.04040479]
[1645291394958,1.73421,2752.9,2752.6,0.04040479]
[1645291395159,1.81852,2752.7,2751.8,1.2426]
[1645291395358,1.81852,2752.7,2751.9,1.54373092]
[1645291395359,0.90928,2752.5,2751.9,1.54373092]
[1645291395618,1.8185314,2752.4,2751.9,1.54373092]
[1645291395823,2.8185314,2752.4,2751.9,1.54373092]
[1645291397020,2.8185314,2752.4,2751.9,1.73334452]
[1645291397217,2.8185314,2752.4,2752.0,1.54382191]
[1645291397416,2.8185314,2752.4,2751.9,0.1896136]
[1645291397417,3.1185314,2752.4,2751.9,0.1896136]
[1645291397620,3.4185314,2752.4,2751.9,0.1896136]
[1645291397820,0.90928,2752.3,2751.9,0.1896136]
[1645291398020,0.90927,2752.1,2751.9,0.1896136]
[1645291398425,1.90927,2752.1,2751.9,0.1896136]
[1645291402562,1.36325434,2752.1,2751.9,0.1896136]
[1645291403224,1.36325434,2752.1,2750.9,0.1816]
[1645291403225,3.0,2752.0,2751.4,0.01639331]
[1645291403416,1.8189934,2751.9,2751.4,0.01639331]